bitfinex-derivatives/quotes_BTCF0:USTF0_20241009
["timestamp","ask_amount","ask_price","bid_price","bid_amount"]
[1728507006813,0.882982,60886.0,60872.0,0.0822]
[1728507006998,0.8008,60886.0,60873.0,0.082198]
[1728507007403,0.082184,60885.0,60880.0,0.001]
[1728507008097,0.082184,60885.0,60873.0,0.083198]
[1728507008302,0.00124,60886.0,60880.0,0.08219]
[1728507008508,1.67216,60892.0,60884.0,0.44]
[1728507008711,1.31,60892.0,60887.0,0.08218]
[1728507009407,1.31,60892.0,60887.0,0.44298]
[1728507009709,1.31,60892.0,60888.0,0.082179]
[1728507010614,0.082175,60891.0,60884.0,0.00084]
[1728507010802,0.082175,60891.0,60887.0,0.001]
[1728507011003,1.31924,60892.0,60887.0,0.001]
[1728507011205,1.31,60892.0,60885.0,0.082183]
[1728507011512,0.008,60892.0,60888.0,0.001]
[1728507011812,0.3608,60899.0,60886.0,0.3608]
[1728507012119,0.082178,60889.0,60887.0,0.001]
[1728507012612,1.3,60888.0,60887.0,0.001]
[1728507013503,1.3,60888.0,60885.0,0.001]
[1728507013710,0.8008,60886.0,60885.0,0.001]
[1728507014202,0.082189,60881.0,60879.0,0.3608]
[1728507015009,0.8008,60886.0,60869.0,0.0326]
[1728507015213,0.082209,60866.0,60863.0,0.08151385]
[1728507015407,0.082214,60862.0,60860.0,0.08151385]
[1728507015611,0.082226,60853.0,60851.0,0.08151385]
[1728507015915,0.082238,60845.0,60841.0,0.08151385]
[1728507016104,0.082255,60832.0,60831.0,0.08151385]
[1728507016304,0.522255,60832.0,60829.0,0.08151385]
[1728507016620,0.082263,60826.0,60825.0,0.08151385]
[1728507016805,0.80204,60830.0,60819.0,0.3608]
[1728507017002,0.80204,60830.0,60802.0,0.09781662]
[1728507017003,0.44,60819.0,60803.0,0.3608]
[1728507017203,0.3608,60825.0,60803.0,0.3608]
[1728507017411,0.3608,60825.0,60817.0,0.3608]
[1728507017412,0.082266,60824.0,60817.0,0.3608]
[1728507017615,0.3608,60825.0,60817.0,0.3608]
[1728507018503,0.3608,60825.0,60811.0,0.80164]
[1728507018504,0.44,60823.0,60811.0,0.3678]
[1728507018905,0.082269,60822.0,60811.0,0.3678]
[1728507019105,0.8008,60812.0,60811.0,0.007]
[1728507019320,0.8008,60812.0,60786.0,0.0627]
[1728507019321,0.082291,60805.0,60781.0,0.3608]
[1728507019622,0.44,60790.0,60781.0,0.3608]
[1728507019917,0.44,60784.0,60771.0,0.00345585]
[1728507020115,0.3608,60782.0,60771.0,0.00345585]
[1728507020316,0.0024691,60803.0,60781.0,0.3608]
[1728507020317,0.3608,60798.0,60781.0,0.3608]
[1728507020615,0.3608,60798.0,60749.0,0.0044]
[1728507020616,0.3608,60777.0,60749.0,0.0044]
[1728507020817,0.3608,60777.0,60741.0,0.09781662]
[1728507020818,0.44,60754.0,60741.0,0.0316]
[1728507021115,0.3608,60757.0,60741.0,0.0316]
[1728507021316,0.082353,60760.0,60750.0,0.3608]
[1728507021520,0.3608,60768.0,60757.0,0.3608]
[1728507021708,0.3608,60773.0,60763.0,0.3608]
[1728507021912,0.3608,60779.0,60766.0,0.44]
[1728507022218,0.3608,60779.0,60763.0,0.3608]
[1728507022516,0.3608,60770.0,60763.0,0.3608]
[1728507022717,0.3608,60770.0,60756.0,0.3608]
[1728507023619,0.44,60766.0,60756.0,0.3608]
[1728507023816,0.082355,60759.0,60750.0,0.001]
[1728507024023,1.30124,60778.0,60741.0,0.0316]
[1728507024024,0.44,60752.0,60741.0,0.0316]
[1728507024207,0.3608,60743.0,60726.0,0.3608]
[1728507024407,0.44,60728.0,60726.0,0.3608]
[1728507024621,0.8008,60733.0,60726.0,0.3608]
[1728507025011,0.3608,60737.0,60726.0,0.3608]
[1728507025312,0.44,60727.0,60726.0,0.3608]
[1728507025515,0.8008,60738.0,60726.0,0.3618]
[1728507025819,0.001,60743.0,60737.0,0.3608]
[1728507026117,0.001,60743.0,60742.0,0.3608]
[1728507027008,0.44,60757.0,60742.0,0.85468]
[1728507027319,0.3608,60754.0,60742.0,0.3608]
[1728507027516,0.3608,60762.0,60749.0,0.3608]
[1728507027826,0.44,60752.0,60749.0,0.3608]
[1728507028719,0.3618,60757.0,60749.0,0.3608]
[1728507028919,0.001,60752.0,60751.0,0.082364]
[1728507029619,0.3608,60762.0,60753.0,0.082361]
[1728507029916,0.3608,60762.0,60749.0,0.3608]
[1728507029917,0.8008,60757.0,60749.0,0.3608]
[1728507030130,0.082368,60749.0,60738.0,0.0308]
[1728507030316,0.44,60744.0,60738.0,0.0308]
[1728507030618,0.3608,60743.0,60738.0,0.0308]
[1728507031013,0.44,60739.0,60732.0,0.3608]
[1728507031216,0.44,60733.0,60732.0,0.3608]
[1728507031624,0.44,60733.0,60725.0,0.3608]
[1728507031625,0.08239,60732.0,60725.0,0.3608]
[1728507031824,0.44,60727.0,60725.0,0.3608]
[1728507032014,0.3608,60726.0,60714.0,0.0001]
[1728507032329,0.082416,60713.0,60699.0,0.36164]
[1728507032530,1.3,60715.0,60699.0,0.36164]
[1728507032531,0.8008,60709.0,60708.0,0.02408361]
[1728507032820,0.082431,60703.0,60683.0,0.0306]
[1728507033122,0.082424,60707.0,60697.0,0.3608]
[1728507033331,0.44,60705.0,60697.0,0.3608]
[1728507033622,0.3608,60705.0,60697.0,0.3608]
[1728507033822,0.00247281,60710.0,60697.0,0.31919]
[1728507034026,0.3608,60709.0,60697.0,0.31919]
[1728507034221,0.00247281,60710.0,60708.0,0.44]
[1728507034429,0.8008,60731.0,60709.0,0.85496]
[1728507034629,0.8008,60731.0,60709.0,0.85488]
[1728507034829,0.46132,60751.0,60704.0,0.3608]
[1728507034830,0.44,60713.0,60704.0,0.3608]
[1728507035128,0.3608,60720.0,60704.0,0.3608]
[1728507035330,0.3608,60720.0,60708.0,0.44]
[1728507035628,0.3608,60729.0,60719.0,0.3608]
[1728507035927,0.001,60726.0,60719.0,0.3608]
[1728507036318,0.3608,60729.0,60714.0,0.3608]
[1728507036722,0.3608,60724.0,60714.0,0.3608]
[1728507036920,0.8008,60729.0,60714.0,0.3608]
[1728507037119,0.3608,60729.0,60715.0,0.44]
[1728507037315,0.44,60728.0,60714.0,0.3608]
[1728507037920,0.3608,60732.0,60714.0,0.443213]
[1728507038123,0.009,60726.0,60720.0,0.8008]
[1728507038324,0.009,60726.0,60725.0,0.3608]
[1728507038626,0.3608,60737.0,60725.0,0.85484]
[1728507038817,0.3608,60745.0,60730.0,0.3608]
[1728507039021,0.3608,60745.0,60732.0,0.082389]
[1728507039216,0.3608,60749.0,60735.0,0.3608]
[1728507039422,0.44,60736.0,60732.0,0.00084]
[1728507039618,0.8008,60736.0,60721.0,0.064]
[1728507040119,0.3608,60729.0,60721.0,0.064]
[1728507040316,0.3608,60728.0,60721.0,0.064]
[1728507040723,0.443197,60728.0,60721.0,0.064]
[1728507041329,0.3608,60728.0,60721.0,0.064]
[1728507041521,0.0824,60725.0,60721.0,0.064]
[1728507041716,0.08241,60718.0,60697.0,0.3608]
[1728507041932,0.3608,60722.0,60721.0,0.001]
[1728507042234,0.3608,60722.0,60702.0,0.3608]
[1728507042235,0.082419,60711.0,60702.0,0.3608]
[1728507042421,0.3608,60708.0,60702.0,0.3608]
[1728507043024,0.00247194,60721.0,60707.0,0.3608]
[1728507043335,0.00247194,60721.0,60714.0,0.3608]
[1728507044034,0.00247194,60721.0,60720.0,0.3608]
[1728507044628,0.3608,60727.0,60720.0,0.3608]
[1728507044831,0.44,60728.0,60720.0,0.3608]
[1728507045032,0.082398,60727.0,60720.0,0.3608]
[1728507045332,0.3608,60730.0,60723.0,0.082401]
[1728507045530,0.08485311,60740.0,60728.0,0.3608]
[1728507045834,0.00247311,60740.0,60728.0,0.3608]
[1728507046033,0.44,60739.0,60728.0,0.3608]
[1728507046326,0.00247311,60740.0,60734.0,0.3608]
[1728507047318,0.00247311,60740.0,60739.0,0.3608]
[1728507047833,0.3608,60754.0,60739.0,1.89472]
[1728507048027,0.36326992,60765.0,60752.0,0.3608]
[1728507048530,0.08235,60762.0,60752.0,0.3608]
[1728507049325,0.08235,60762.0,60752.0,0.3618]
[1728507049729,1.3,60764.0,60752.0,0.3608]
[1728507049730,0.522357,60757.0,60752.0,0.3608]
[1728507049931,0.08236,60755.0,60752.0,0.001]
[1728507050336,0.3608,60753.0,60752.0,0.001]
[1728507050526,0.44,60757.0,60749.0,0.3608]
[1728507051330,0.3608,60750.0,60719.0,0.42472398]
[1728507051633,0.082403,60723.0,60707.0,0.3608]
[1728507051828,0.3608,60729.0,60707.0,0.3608]
[1728507051829,0.3608,60721.0,60707.0,0.3608]
[1728507052243,0.3608,60721.0,60697.0,0.0948]
[1728507052244,0.3608,60729.0,60718.0,0.3608]
[1728507052534,0.3608,60735.0,60724.0,0.4432]
[1728507052728,0.3608,60735.0,60725.0,0.0941]
[1728507052930,0.44,60732.0,60725.0,0.0941]
[1728507053531,0.3608,60729.0,60725.0,0.0941]
[1728507054242,0.3608,60735.0,60725.0,0.0941]
[1728507054734,0.3608,60735.0,60726.0,0.06392398]
[1728507054929,0.001,60729.0,60727.0,0.06392398]
[1728507055130,0.3608,60735.0,60727.0,0.06392398]
[1728507055541,0.3608,60735.0,60726.0,0.06392398]
[1728507055728,0.3608,60735.0,60725.0,0.24042298]
[1728507055934,0.001,60729.0,60725.0,0.24042298]
[1728507056125,0.001,60729.0,60726.0,0.06392398]
[1728507056637,0.3608,60735.0,60727.0,0.06392398]
[1728507056837,0.00247193,60736.0,60727.0,0.06392398]
[1728507056838,0.3608,60734.0,60727.0,0.06392398]
[1728507057136,0.44,60732.0,60728.0,0.06392398]
[1728507057330,0.44,60732.0,60725.0,0.0941]
[1728507057525,0.44,60732.0,60726.0,0.001]
[1728507057731,0.3608,60728.0,60726.0,0.001]
[1728507058040,0.3608,60728.0,60725.0,0.0941]
[1728507059237,0.3608,60734.0,60726.0,0.001]
[1728507059537,0.3608,60734.0,60727.0,0.06392398]
[1728507059840,0.3608,60728.0,60726.0,0.001]
[1728507060031,0.3608,60728.0,60716.0,0.06392398]
[1728507060032,0.082409,60718.0,60716.0,0.06392398]
[1728507060235,0.082409,60718.0,60707.0,0.09781662]
[1728507060236,0.08242,60710.0,60707.0,0.06392398]
[1728507060432,0.3608,60708.0,60706.0,0.06392398]
[1728507060632,0.3608,60708.0,60702.0,0.0302]
[1728507060633,0.3608,60708.0,60705.0,0.06392398]
[1728507060830,0.44,60715.0,60707.0,0.082424]
[1728507060831,1.3,60715.0,60707.0,0.082424]
[1728507061040,1.3,60715.0,60711.0,0.06553002]
[1728507061243,0.3608,60717.0,60711.0,0.06553002]
[1728507061439,0.3608,60717.0,60712.0,0.06553002]
[1728507061634,0.44,60715.0,60712.0,0.06553002]
[1728507062038,0.44,60715.0,60707.0,0.004]
[1728507062342,0.3608,60708.0,60707.0,0.004]
[1728507062548,0.001,60715.0,60707.0,0.004]
[1728507062747,0.3608,60726.0,60719.0,0.082407]
[1728507063039,0.3608,60726.0,60724.0,0.08190895]
[1728507063246,0.44,60732.0,60725.0,0.18783644]
[1728507063247,0.3608,60732.0,60725.0,0.18783644]
[1728507063436,0.3608,60732.0,60729.0,0.08190724]
[1728507063740,0.3608,60737.0,60730.0,0.10592749]
[1728507063937,0.3608,60737.0,60734.0,0.16431413]
[1728507064135,0.3608,60737.0,60734.0,0.08192713]
[1728507064340,0.3608,60737.0,60735.0,0.10575112]
[1728507064741,0.3608,60746.0,60735.0,0.10575112]
[1728507064946,0.3608,60746.0,60742.0,0.06554312]
[1728507065136,0.3608,60746.0,60744.0,0.06554312]
[1728507065338,0.3608,60746.0,60745.0,0.06554312]
[1728507065640,0.3608,60746.0,60742.0,0.0819289]
[1728507065844,0.3608,60745.0,60743.0,0.0819289]
[1728507066035,0.3608,60752.0,60744.0,0.10549482]
[1728507066236,0.44,60745.0,60733.0,0.00096]
[1728507066440,0.803987,60734.0,60720.0,0.00247034]
[1728507066632,0.3608,60727.0,60721.0,0.032]
[1728507067536,0.3608,60734.0,60725.0,0.443199]
[1728507067732,0.3618,60734.0,60725.0,0.443199]
[1728507067932,0.3618,60734.0,60725.0,0.3608]
[1728507068143,0.44,60733.0,60725.0,0.3608]
[1728507068339,0.001,60727.0,60725.0,0.3608]
[1728507069347,0.3608,60734.0,60727.0,0.082397]
[1728507069548,0.3608,60734.0,60725.0,0.3608]
[1728507069737,0.08239,60732.0,60725.0,0.3608]
[1728507069940,0.08239,60732.0,60721.0,0.032]
[1728507070244,0.522397,60727.0,60725.0,0.003]
[1728507070443,0.3608,60726.0,60725.0,0.003]
[1728507070633,0.3608,60726.0,60720.0,0.00247034]
[1728507070634,0.082405,60722.0,60720.0,0.00247034]
[1728507070838,0.3608,60721.0,60720.0,0.00247034]
[1728507071635,0.3618,60727.0,60720.0,0.00247034]
[1728507071937,0.3618,60727.0,60720.0,0.00447034]
[1728507071938,0.3608,60727.0,60720.0,0.00447034]
[1728507072136,0.3608,60733.0,60724.0,0.443201]
[1728507072345,0.3608,60733.0,60729.0,0.082394]
[1728507072550,0.2111,60733.0,60731.0,0.082391]
[1728507073050,0.2111,60733.0,60725.0,0.49496]
[1728507073051,0.2111,60733.0,60725.0,0.00096]
[1728507073241,0.8008,60726.0,60724.0,0.00088]
[1728507073545,0.082405,60721.0,60720.0,0.00547034]
[1728507073750,0.8008,60726.0,60720.0,0.00547034]
[1728507074041,0.8008,60726.0,60720.0,0.00247034]
[1728507074247,0.8008,60726.0,60725.0,0.004]
[1728507074845,0.3608,60726.0,60720.0,0.00247034]
[1728507075046,0.3608,60726.0,60722.0,0.082403]
[1728507075547,0.2111,60733.0,60724.0,0.3608]
[1728507075957,0.2111,60733.0,60730.0,0.082393]
[1728507076640,0.2111,60733.0,60724.0,0.3608]
[1728507076846,0.36327106,60740.0,60725.0,0.3608]
[1728507077053,0.36327106,60740.0,60731.0,0.3608]
[1728507077249,0.36327106,60740.0,60734.0,0.082387]
[1728507077450,0.00247106,60740.0,60734.0,0.082387]
[1728507077654,0.3608,60746.0,60741.0,0.082378]
[1728507077845,0.082376,60743.0,60735.0,0.0319]
[1728507078046,0.3608,60746.0,60738.0,0.082382]
[1728507078245,0.3608,60746.0,60745.0,0.44]
[1728507080055,0.3678,60746.0,60740.0,0.44]
[1728507080350,0.3608,60741.0,60738.0,0.001]
[1728507080553,0.082381,60739.0,60738.0,0.001]
[1728507080747,0.082401,60724.0,60723.0,0.44]
[1728507081148,0.082401,60724.0,60712.0,0.3608]
[1728507081347,0.082415,60714.0,60713.0,0.10361941]
[1728507081553,0.082425,60706.0,60705.0,0.44]
[1728507081752,0.082425,60706.0,60697.0,0.0322]
[1728507081753,0.3608,60707.0,60697.0,0.0322]
[1728507081955,0.082426,60706.0,60701.0,0.44]
[1728507082251,0.3608,60707.0,60701.0,0.44]
[1728507082843,0.082428,60704.0,60701.0,0.44]
[1728507083046,0.082435,60699.0,60695.0,0.44]
[1728507083257,0.3608,60697.0,60689.0,0.44]
[1728507083646,1.45508,60697.0,60696.0,5.6e-07]
[1728507083844,0.85508,60697.0,60696.0,5.6e-07]
[1728507084150,1.45508,60697.0,60696.0,5.6e-07]
[1728507084547,1.45508,60697.0,60696.0,0.00400056]
[1728507085053,1.45508,60697.0,60663.0,0.3608]
[1728507085054,0.08246,60681.0,60663.0,0.3608]
[1728507085248,0.082477,60668.0,60663.0,0.3608]
[1728507085447,0.3608,60667.0,60658.0,0.3608]
[1728507085647,0.082487,60661.0,60658.0,0.3608]
[1728507085858,0.52249,60659.0,60651.0,0.3608]
[1728507086054,0.3608,60656.0,60651.0,0.3608]
[1728507086253,0.082497,60654.0,60645.0,0.3608]
[1728507086463,0.8008,60649.0,60634.0,0.3608]
[1728507086647,0.44,60636.0,60628.0,0.3608]
[1728507086848,0.3608,60638.0,60623.0,0.44]
[1728507086849,0.3608,60632.0,60623.0,0.44]
[1728507087048,0.00247511,60649.0,60629.0,0.7216]
[1728507087263,0.00247511,60649.0,60641.0,0.44]
[1728507087461,0.3608,60663.0,60647.0,0.3608]
[1728507087462,0.001,60654.0,60647.0,0.3608]
[1728507087659,0.001,60654.0,60653.0,0.44]
[1728507087957,0.00247405,60665.0,60653.0,1.2954]
[1728507088172,0.3608,60684.0,60662.0,0.8008]
[1728507088456,0.3608,60684.0,60672.0,0.3608]
[1728507088656,0.3608,60679.0,60667.0,0.3608]
[1728507090261,0.3608,60679.0,60667.0,0.443277]
[1728507090555,0.3608,60679.0,60669.0,0.082476]
[1728507090854,0.3608,60690.0,60675.0,0.44]
[1728507091054,0.001,60679.0,60673.0,0.3608]
[1728507091259,0.001,60679.0,60670.0,0.00084]
[1728507091260,0.3608,60676.0,60670.0,0.00084]
[1728507091457,0.3608,60671.0,60667.0,0.002]
[1728507092453,0.00412,60670.0,60656.0,0.3608]
[1728507092659,0.36492,60670.0,60669.0,0.002]
[1728507093060,0.3608,60670.0,60669.0,0.002]
[1728507093250,0.3608,60670.0,60661.0,0.443286]
[1728507093657,0.3608,60670.0,60661.0,0.3608]
[1728507093865,0.8008,60662.0,60644.0,0.0487447]
[1728507094162,0.8008,60662.0,60616.0,0.09800523]
[1728507094163,0.3608,60645.0,60636.0,0.08252]
[1728507094349,0.3608,60645.0,60639.0,0.082516]
[1728507094552,0.3608,60651.0,60639.0,0.082516]
[1728507095658,0.3608,60651.0,60634.0,0.3608]
[1728507095969,0.00247442,60664.0,60650.0,0.8008]
[1728507096257,0.00247442,60664.0,60661.0,0.084487]
[1728507096656,0.00247442,60664.0,60661.0,0.002]
[1728507097567,0.00247442,60664.0,60657.0,0.3608]
[1728507097768,0.00412,60669.0,60659.0,0.082488]
[1728507098061,0.00412,60669.0,60664.0,0.00128648]
[1728507098263,0.3608,60678.0,60668.0,0.082476]
[1728507098455,0.00247335,60683.0,60674.0,0.082469]
[1728507098653,0.00247335,60683.0,60669.0,0.3608]
[1728507098654,0.00247335,60683.0,60677.0,0.3608]
[1728507098858,0.00247335,60683.0,60675.0,0.0308]
[1728507098859,0.3608,60681.0,60675.0,0.0308]
[1728507099062,0.3608,60681.0,60678.0,0.00128648]
[1728507100255,0.8008,60681.0,60679.0,0.00128648]
[1728507100461,0.3608,60681.0,60679.0,0.00128648]
[1728507100658,0.00247335,60683.0,60680.0,0.44]
[1728507100859,0.3608,60696.0,60684.0,0.082446]
[1728507101168,0.3608,60696.0,60682.0,0.3608]
[1728507101169,0.3608,60696.0,60690.0,0.00128648]
[1728507101666,0.3608,60699.0,60691.0,0.0307]
[1728507102370,0.3608,60705.0,60695.0,0.44128648]
[1728507102752,0.3608,60705.0,60696.0,0.032]
[1728507102959,0.3608,60705.0,60701.0,0.44]
[1728507103359,0.3608,60705.0,60703.0,0.00128648]
[1728507103965,0.3618,60705.0,60703.0,0.00128648]
[1728507104266,0.3618,60705.0,60699.0,0.3608]
[1728507104468,0.3618,60705.0,60704.0,0.00128648]
[1728507104667,0.8018,60705.0,60704.0,0.00128648]
[1728507104970,0.08243,60697.0,60691.0,0.0307]
[1728507105268,0.082433,60695.0,60691.0,0.0307]
[1728507105463,0.3608,60698.0,60691.0,0.0307]
[1728507105771,0.36340001,60705.0,60696.0,0.44]
[1728507105960,0.3608,60705.0,60696.0,0.44]
[1728507106271,0.3618,60705.0,60696.0,0.8008]
[1728507106568,0.3608,60705.0,60696.0,0.8008]
[1728507106958,0.082424,60701.0,60696.0,0.3608]
[1728507107158,0.082426,60700.0,60696.0,0.3608]
[1728507107759,0.3618,60705.0,60699.0,0.44]
[1728507108671,0.3618,60705.0,60696.0,0.3608]
[1728507108978,0.3618,60705.0,60692.0,0.3608]
[1728507108979,0.3608,60700.0,60692.0,0.3608]
[1728507109965,0.3628,60700.0,60692.0,0.3608]
[1728507110269,0.3608,60700.0,60692.0,0.3608]
[1728507110474,0.444226,60700.0,60692.0,0.3608]
[1728507110870,0.443226,60700.0,60692.0,0.3608]
[1728507111069,0.444226,60700.0,60692.0,0.3608]
[1728507112374,0.082433,60695.0,60692.0,0.3608]
[1728507112569,0.3618,60700.0,60692.0,0.3608]
[1728507112776,0.082428,60698.0,60692.0,0.3608]
[1728507113480,1.30148,60699.0,60692.0,0.3608]
[1728507113768,1.3,60699.0,60696.0,0.44]
[1728507113969,1.3,60699.0,60696.0,0.43]
[1728507114678,1.3,60699.0,60692.0,0.3608]
[1728507114872,0.3608,60705.0,60692.0,0.3608]
[1728507115176,0.3608,60705.0,60695.0,0.44]
[1728507115373,1.3,60704.0,60695.0,0.44]
[1728507115578,0.3608,60705.0,60701.0,0.44]
[1728507115974,0.082416,60707.0,60701.0,0.44]
[1728507116277,1.3,60705.0,60701.0,0.44]
[1728507116675,0.36327241,60709.0,60701.0,0.44]
[1728507116877,0.00247241,60709.0,60706.0,0.8008]
[1728507117183,0.00247241,60709.0,60707.0,0.0304]
[1728507117383,1.6608,60714.0,60707.0,0.0304]
[1728507117577,0.3608,60714.0,60712.0,0.44]
[1728507117770,0.082401,60718.0,60712.0,0.44]
[1728507117967,0.3608,60722.0,60712.0,0.44]
[1728507118279,0.3608,60722.0,60717.0,0.44]
[1728507118670,0.082394,60723.0,60717.0,0.8008]
[1728507118971,1.30152,60725.0,60722.0,0.44]
[1728507119175,0.3608,60726.0,60722.0,0.44]
[1728507119380,0.00247141,60727.0,60722.0,0.44]
[1728507119776,0.008,60723.0,60722.0,0.44]
[1728507120087,0.00247141,60727.0,60722.0,0.522395]
[1728507120282,0.003,60726.0,60722.0,0.44]
[1728507120479,0.00247141,60727.0,60725.0,0.3608]
[1728507120999,0.3608,60744.0,60726.0,0.85484]
[1728507121275,0.3608,60744.0,60725.0,0.9608]
[1728507121276,0.36236001,60752.0,60743.0,0.8008]
[1728507121478,0.00156001,60752.0,60751.0,0.44]
[1728507121778,0.00247031,60754.0,60751.0,0.44]
[1728507121983,0.3608,60775.0,60753.0,0.3608]
[1728507122179,0.3608,60775.0,60765.0,0.44]
[1728507122479,0.3608,60775.0,60763.0,0.3608]
[1728507122673,0.082324,60776.0,60768.0,0.3608]
[1728507122876,0.082316,60781.0,60775.0,0.3608]
[1728507123183,0.3608,60797.0,60780.0,0.3608]
[1728507123379,0.082296,60796.0,60786.0,0.443108]
[1728507123678,0.08228,60808.0,60791.0,0.082302]
[1728507123882,0.08228,60808.0,60807.0,0.44]
[1728507124272,0.08228,60808.0,60790.0,0.0306]
[1728507124273,0.6,60808.0,60794.0,0.44]
[1728507124481,0.44,60802.0,60790.0,0.0306]
[1728507124676,0.443093,60798.0,60790.0,0.0306]
[1728507124977,0.082287,60802.0,60795.0,0.44]
[1728507125179,0.082287,60802.0,60800.0,0.44]
[1728507125480,0.3608,60804.0,60800.0,0.44]
[1728507126184,0.01,60802.0,60800.0,0.44]
[1728507126686,0.3608,60804.0,60800.0,0.44]
[1728507126883,0.3718,60804.0,60800.0,0.441]
[1728507127078,0.011,60804.0,60800.0,0.441]
[1728507127273,0.082282,60806.0,60801.0,0.4934]
[1728507127480,0.006,60802.0,60800.0,0.00184]
[1728507127681,0.3608,60812.0,60801.0,0.9334]
[1728507127880,0.082278,60810.0,60801.0,0.44]
[1728507128179,0.082278,60810.0,60800.0,0.00184]
[1728507128180,0.082285,60804.0,60800.0,0.001]
[1728507129084,0.008,60804.0,60800.0,0.001]
[1728507129788,0.8008,60801.0,60788.0,0.3608]
[1728507129989,0.082304,60790.0,60788.0,0.3608]
[1728507130290,0.082291,60799.0,60788.0,0.082306]
[1728507130477,0.082294,60797.0,60792.0,0.3608]
[1728507130678,0.082305,60789.0,60781.0,0.3608]
[1728507131379,0.3608,60791.0,60776.0,0.0319]
[1728507131380,0.44,60790.0,60776.0,0.0319]
[1728507131584,0.082305,60789.0,60776.0,0.0319]
[1728507131994,0.082305,60789.0,60788.0,0.008]
[1728507132581,0.006,60790.0,60787.0,0.001]
[1728507132981,0.006,60790.0,60789.0,0.3608]
[1728507133182,0.3608,60797.0,60792.0,0.44]
[1728507133684,0.3608,60797.0,60789.0,0.36176]
[1728507133881,0.3608,60794.0,60789.0,0.00096]
[1728507134083,0.08227,60815.0,60792.0,0.44]
[1728507134084,0.3608,60809.0,60792.0,0.44]
[1728507134288,0.3608,60809.0,60795.0,0.3608]
[1728507134289,0.08475443,60803.0,60795.0,0.3608]
[1728507134589,0.082287,60802.0,60795.0,0.3608]
[1728507134894,0.082294,60797.0,60789.0,0.3608]
[1728507135081,0.082301,60792.0,60783.0,0.082313]
[1728507135285,0.08231,60785.0,60777.0,0.3608]
[1728507135489,0.082317,60780.0,60776.0,0.0319]
[1728507135682,0.3608,60777.0,60766.0,0.00246844]
[1728507135882,0.082322,60776.0,60766.0,0.00246844]
[1728507136097,0.082327,60773.0,60766.0,0.00246844]
[1728507136393,0.44,60768.0,60766.0,0.00246844]
[1728507136594,0.3608,60767.0,60766.0,0.00080752]
[1728507137194,0.3608,60767.0,60755.0,0.3909]
[1728507137497,0.3608,60767.0,60760.0,0.44]
[1728507137691,0.082334,60768.0,60760.0,0.44]
[1728507137896,0.3608,60772.0,60766.0,0.44]
[1728507138094,1.3,60771.0,60766.0,0.44]
[1728507138288,0.3608,60772.0,60766.0,0.013]
[1728507138690,0.8008,60767.0,60749.0,0.082359]
[1728507138897,0.3608,60759.0,60749.0,0.44]
[1728507139193,0.3608,60767.0,60749.0,0.44]
[1728507139401,0.3608,60767.0,60758.0,0.082346]
[1728507139691,0.001,60768.0,60761.0,0.44]
[1728507140081,0.3608,60763.0,60753.0,0.3608]
[1728507140288,0.3608,60758.0,60744.0,0.00246934]
[1728507140497,0.082349,60757.0,60744.0,0.00246934]
[1728507140687,0.443155,60752.0,60744.0,0.00246934]
[1728507140889,0.082357,60751.0,60739.0,0.3937]
[1728507141095,0.3608,60747.0,60744.0,0.00084]
[1728507141387,0.3608,60747.0,60725.0,0.00247014]
[1728507141694,0.3608,60738.0,60725.0,0.08486114]
[1728507141891,0.8008,60740.0,60725.0,0.08486114]
[1728507142292,0.3608,60740.0,60728.0,0.082387]
[1728507142491,0.3618,60747.0,60737.0,0.443174]
[1728507142694,0.001,60747.0,60738.0,0.082373]
[1728507142996,0.001,60747.0,60737.0,0.3608]
[1728507143192,0.001,60747.0,60744.0,0.082365]
[1728507143594,0.001,60747.0,60737.0,0.3608]
[1728507143802,0.001,60747.0,60744.0,0.44]
[1728507143991,0.3608,60752.0,60744.0,0.44]
[1728507144689,1.3,60759.0,60750.0,0.44]
[1728507144896,1.3,60759.0,60732.0,0.013]
[1728507145096,1.3,60759.0,60719.0,0.09651913]
[1728507145294,0.0549,60752.0,60699.0,0.0082]
[1728507145504,0.0549,60752.0,60704.0,0.21124218]
[1728507145801,1.3,60759.0,60668.0,0.01654957]
[1728507145802,0.0164,60746.0,60668.0,0.01654957]
[1728507146029,0.29458409,60656.0,60629.0,0.082522]
[1728507146306,0.3608,60631.0,60629.0,0.082522]
[1728507146490,0.3608,60638.0,60630.0,0.4948]
[1728507146689,0.3608,60638.0,60635.0,0.082513]
[1728507147097,0.3608,60638.0,60637.0,1.5]
[1728507147297,0.3608,60638.0,60637.0,1.50111568]
[1728507147605,0.3608,60638.0,60637.0,1.99587568]
[1728507148100,0.107256,60678.0,60637.0,1.50111568]
[1728507148101,0.3608,60648.0,60637.0,1.50111568]
[1728507148299,0.3608,60648.0,60639.0,0.3608]
[1728507148499,0.3608,60648.0,60642.0,0.00111568]
[1728507148893,0.3608,60648.0,60643.0,0.49468]
[1728507149092,0.082483,60658.0,60646.0,0.3608]
[1728507149603,0.443271,60667.0,60652.0,0.44]
[1728507149795,0.443271,60667.0,60658.0,0.3608]
[1728507149991,0.082473,60666.0,60658.0,0.3608]
[1728507150200,0.082474,60665.0,60658.0,0.3608]
[1728507150501,0.3608,60667.0,60661.0,0.00123253]